bitfinex/quotes_BTCUSD_20250619
["timestamp","ask_amount","ask_price","bid_price","bid_amount"]
[1750332239451,1.09635376,104970.0,104960.0,0.34554122]
[1750332239652,0.7369046,104970.0,104960.0,0.34754122]
[1750332239893,1.11540617,104970.0,104960.0,0.35706856]
[1750332240112,1.36283183,104970.0,104960.0,0.05926]
[1750332240366,1.35330576,104970.0,104960.0,0.0357]
[1750332240629,1.92060157,104970.0,104960.0,0.0197]
[1750332240868,1.96518025,104970.0,104960.0,0.0031]
[1750332241084,1.99380925,104970.0,104960.0,0.0031]
[1750332241293,1.99380925,104970.0,104960.0,0.0011]
[1750332241711,1.96473057,104970.0,104960.0,0.0001]
[1750332242239,1.96473057,104970.0,104950.0,0.0327]
[1750332242240,1.61842351,104960.0,104950.0,0.0167]
[1750332242451,1.90606304,104960.0,104950.0,0.0167]
[1750332242878,1.89076304,104960.0,104950.0,0.0167]
[1750332243295,1.70803956,104960.0,104950.0,0.0167]
[1750332243726,1.61276971,104960.0,104950.0,0.0167]
[1750332244607,1.62229696,104960.0,104950.0,0.0167]
[1750332244834,1.62229696,104960.0,104950.0,0.0001]
[1750332244835,1.73377589,104960.0,104950.0,0.0001]
[1750332245795,2.22427589,104960.0,104950.0,0.0001]
[1750332249846,2.25290889,104960.0,104950.0,0.0001]
[1750332250031,2.34817874,104960.0,104950.0,0.0001]
[1750332254055,2.34817874,104960.0,104950.0,0.0154]
[1750332254479,2.33197874,104960.0,104950.0,0.0154]
[1750332254959,0.87818741,104960.0,104950.0,0.24012316]
[1750332255166,1.20939832,104960.0,104950.0,0.24965087]
[1750332255383,1.20939832,104960.0,104950.0,0.3449298]
[1750332255594,1.05889832,104960.0,104950.0,0.3449298]
[1750332256047,0.34,104960.0,104950.0,0.3449298]
[1750332256264,0.69944916,104960.0,104950.0,0.3449298]
[1750332256482,0.69944916,104960.0,104950.0,0.3479298]
[1750332256914,0.69979547,104960.0,104950.0,0.3479298]
[1750332257594,0.70932209,104960.0,104950.0,0.3479298]
[1750332258667,0.34,104960.0,104950.0,0.3479298]
[1750332258872,0.69979547,104960.0,104950.0,0.3479298]
[1750332259982,0.70932227,104960.0,104950.0,0.3479298]
[1750332260202,0.71884925,104960.0,104950.0,0.3479298]
[1750332261050,0.70932227,104960.0,104950.0,0.3479298]
[1750332261321,0.71884925,104960.0,104950.0,0.3479298]
[1750332263117,0.70932227,104960.0,104950.0,0.3479298]
[1750332263740,0.71884925,104960.0,104950.0,0.3479298]
[1750332264150,0.70932227,104960.0,104950.0,0.3479298]
[1750332264357,0.71884925,104960.0,104950.0,0.3479298]
[1750332265853,0.72837641,104960.0,104950.0,0.3479298]
[1750332266077,0.72837632,104960.0,104950.0,0.3479298]
[1750332266915,0.35905369,104960.0,104950.0,0.3479298]
[1750332267129,0.72837623,104960.0,104950.0,0.3479298]
[1750332267348,0.71884916,104960.0,104950.0,0.3479298]
[1750332267650,0.72837623,104960.0,104950.0,0.3479298]
[1750332268043,0.71884925,104960.0,104950.0,0.3479298]
[1750332268739,0.70932218,104960.0,104950.0,0.3479298]
[1750332269657,0.69979547,104960.0,104950.0,0.3479298]
[1750332274130,0.35979547,104970.0,104960.0,0.23462999]
[1750332274340,0.76134361,104980.0,104970.0,0.24078322]
[1750332274551,0.742293,104980.0,104970.0,0.2250834]
[1750332275401,0.757893,104980.0,104970.0,0.2250834]
[1750332275629,1.47748394,104980.0,104970.0,0.23460965]
[1750332276085,1.4679585,104980.0,104970.0,0.2095834]
[1750332276299,1.45843297,104980.0,104970.0,0.20005706]
[1750332276544,0.54005687,104970.0,104960.0,0.22520355]
[1750332276772,1.26917415,104970.0,104960.0,0.23473053]
[1750332277415,1.26917415,104970.0,104960.0,0.24425742]
[1750332277862,1.08816969,104970.0,104960.0,0.25378449]
[1750332278070,1.09769576,104970.0,104960.0,0.25378386]
[1750332278279,1.07864317,104970.0,104960.0,0.25378386]
[1750332278705,1.08816951,104970.0,104960.0,0.25378386]
[1750332280528,1.07864317,104970.0,104960.0,0.25378386]
[1750332281785,1.08816951,104970.0,104960.0,0.25378386]
[1750332281996,1.07864317,104970.0,104960.0,0.25378386]
[1750332282420,1.06911674,104970.0,104960.0,0.25378386]
[1750332282630,1.07864272,104970.0,104960.0,0.26948386]
[1750332282862,1.07864272,104970.0,104960.0,0.30501566]
[1750332283070,1.07864272,104970.0,104960.0,0.26948386]
[1750332283486,1.06911674,104970.0,104960.0,0.26948386]
[1750332283698,1.07864263,104970.0,104960.0,0.26948386]
[1750332283922,1.0881687,104970.0,104960.0,0.26948386]
[1750332284996,24.73051614,104960.0,104950.0,0.40348262]
[1750332285203,25.09031161,104960.0,104950.0,0.49876155]
[1750332287622,25.09031161,104960.0,104950.0,0.49976155]
[1750332287847,25.09031161,104960.0,104950.0,0.51556155]
[1750332288106,25.09031161,104960.0,104950.0,0.53316155]
[1750332290657,25.09031161,104960.0,104950.0,0.53016155]
[1750332290881,25.09031161,104960.0,104950.0,0.53616155]
[1750332292145,24.73051614,104960.0,104950.0,0.53616155]
[1750332292350,25.09031161,104960.0,104950.0,0.53616155]
[1750332292977,25.09027391,104960.0,104950.0,0.53616155]
[1750332296878,24.73051614,104960.0,104950.0,0.53616155]
[1750332297087,25.09027391,104960.0,104950.0,0.53616155]
[1750332297567,24.73051614,104960.0,104950.0,0.53616155]
[1750332297777,25.09027391,104960.0,104950.0,0.53616155]
[1750332300550,24.73051614,104960.0,104950.0,0.53616155]
[1750332300766,25.09027391,104960.0,104950.0,0.53616155]
[1750332317567,25.09027391,104960.0,104950.0,0.52056155]
[1750332319480,25.45003168,104960.0,104950.0,0.52056155]
[1750332320139,25.09027391,104960.0,104950.0,0.52056155]
[1750332331255,25.45003168,104960.0,104950.0,1.52056155]
[1750332332508,24.51263334,104960.0,104950.0,1.52056155]
[1750332332720,25.23214888,104960.0,104950.0,1.52056155]
[1750332333984,24.87239111,104960.0,104950.0,1.52056155]
[1750332334806,24.51263334,104960.0,104950.0,1.52056155]
[1750332335257,24.51263334,104960.0,104950.0,1.5519024]
[1750332335682,24.87239111,104960.0,104950.0,1.5519024]
[1750332336499,24.87239111,104960.0,104950.0,1.5489024]
[1750332336704,24.87239111,104960.0,104950.0,1.5459024]
[1750332336910,24.87239111,104960.0,104950.0,1.5549024]
[1750332337953,24.87239111,104960.0,104950.0,1.5381024]
[1750332338584,24.87239111,104960.0,104950.0,1.36932155]
[1750332338957,25.24944888,104960.0,104950.0,1.50760155]
[1750332340831,25.26554888,104960.0,104950.0,1.35352155]
[1750332341039,25.26554888,104960.0,104950.0,1.50760155]
[1750332345734,24.54603334,104960.0,104950.0,1.50760155]
[1750332345960,25.26544888,104960.0,104950.0,1.50760155]
[1750332346171,25.26544888,104960.0,104950.0,1.35352155]
[1750332346386,25.26544888,104960.0,104950.0,1.50764155]
[1750332360651,25.26544888,104960.0,104950.0,1.50824155]
[1750332361120,25.26544888,104960.0,104950.0,1.50828155]
[1750332363723,25.26544888,104960.0,104950.0,1.31400155]
[1750332363929,25.26544888,104960.0,104950.0,1.46852155]
[1750332364983,25.24944888,104960.0,104950.0,1.46852155]
[1750332365839,25.23214888,104960.0,104950.0,1.48632155]
[1750332366069,24.87239111,104960.0,104950.0,1.48632155]
[1750332367156,25.23214888,104960.0,104950.0,1.48632155]
[1750332367367,25.23214888,104960.0,104950.0,1.52604155]
[1750332367788,25.24904888,104960.0,104950.0,1.50824155]
[1750332377157,25.24904888,104960.0,104950.0,1.31400155]
[1750332377391,25.24904888,104960.0,104950.0,1.50820155]
[1750332377824,25.26584888,104960.0,104950.0,1.50820155]
[1750332388413,25.26584888,104960.0,104950.0,1.50788155]
[1750332391064,25.26588888,104960.0,104950.0,1.50788155]
[1750332393782,25.26588888,104960.0,104950.0,1.31400155]
[1750332393993,25.27541568,104960.0,104950.0,1.46828155]
[1750332394808,25.27541568,104960.0,104950.0,1.46428155]
[1750332395199,25.27541568,104960.0,104950.0,1.46728155]
[1750332395424,25.27541568,104960.0,104950.0,1.46228155]
[1750332395642,25.27541568,104960.0,104950.0,1.46528155]
[1750332396454,25.28494257,104960.0,104950.0,1.46528155]
[1750332396682,25.3039968,104960.0,104950.0,1.21572262]
[1750332396896,25.3039968,104960.0,104950.0,1.37000262]
[1750332397546,25.31352414,104960.0,104950.0,1.37000262]
[1750332397992,25.31352414,104960.0,104950.0,1.36700262]
[1750332398205,25.50407292,104960.0,104950.0,1.37853096]
[1750332398442,25.31352414,104960.0,104950.0,1.37553096]
[1750332398644,25.31352477,104960.0,104950.0,1.37653096]
[1750332399686,25.46784477,104960.0,104950.0,1.22225096]
[1750332401138,25.46784477,104960.0,104950.0,1.22755296]
[1750332401543,25.63933968,104960.0,104950.0,1.36277718]
[1750332401755,26.35071642,104960.0,104950.0,1.008402]
[1750332401996,26.37351274,104960.0,104950.0,1.008402]
[1750332402205,26.35071642,104960.0,104950.0,1.008402]
[1750332402440,26.37349848,104960.0,104950.0,1.20849727]
[1750332402882,33.86086514,104960.0,104950.0,1.20849727]
[1750332403085,33.83808308,104960.0,104950.0,1.20849727]
[1750332403292,33.83808308,104960.0,104950.0,1.21602552]
[1750332403517,33.82855574,104960.0,104950.0,1.21502552]
[1750332403764,33.85132901,104960.0,104950.0,1.21502552]
[1750332404185,33.82855574,104960.0,104950.0,1.21502552]
[1750332404825,33.82855574,104960.0,104950.0,1.22455368]
[1750332405040,33.82855574,104960.0,104950.0,1.23408175]
[1750332407030,33.80736952,104960.0,104950.0,1.23408175]
[1750332407245,33.80736952,104960.0,104950.0,1.24360973]
[1750332407475,33.81689668,104960.0,104950.0,1.24360973]
[1750332408409,33.62634736,104960.0,104950.0,1.24360919]
[1750332408611,33.12183684,104960.0,104950.0,1.24360865]
[1750332409055,33.28568418,104960.0,104950.0,1.24360865]
[1750332409261,33.11230959,104960.0,104950.0,1.24360865]
[1750332409467,33.27615684,104960.0,104950.0,1.24360865]
[1750332409815,33.09550905,104960.0,104950.0,1.27914045]
[1750332410028,33.25935603,104960.0,104950.0,1.24360865]
[1750332410442,33.24982905,104960.0,104950.0,1.24360865]
[1750332410641,33.25935612,104960.0,104950.0,1.24360865]
[1750332410843,33.24982905,104960.0,104950.0,1.24360865]
[1750332411046,33.05955554,104960.0,104950.0,1.41570865]
[1750332411277,33.05955554,104960.0,104950.0,1.51098758]
[1750332411422,33.06908225,104960.0,104950.0,1.51098758]
[1750332411625,33.05955554,104960.0,104950.0,1.51098758]
[1750332412090,33.06908225,104960.0,104950.0,1.51098758]
[1750332412589,33.05955554,104960.0,104950.0,1.51098758]
[1750332413422,33.06908225,104960.0,104950.0,1.51098758]
[1750332413771,33.07860905,104960.0,104950.0,1.51098758]
[1750332413973,33.07860896,104960.0,104950.0,1.51098758]
[1750332414232,33.06908216,104960.0,104950.0,1.51098758]
[1750332414657,33.07860887,104960.0,104950.0,1.51098758]
[1750332415727,33.08813576,104960.0,104950.0,1.51098758]
[1750332416090,33.08813567,104960.0,104950.0,1.51098758]
[1750332416515,33.09766265,104960.0,104950.0,1.51098758]
[1750332416731,33.12418981,104960.0,104950.0,1.49328758]
[1750332418803,33.12419044,104960.0,104950.0,1.32935987]
[1750332419017,33.12419107,104960.0,104950.0,1.49320758]
[1750332420976,33.1241917,104960.0,104950.0,1.48367987]
[1750332422769,33.1241917,104960.0,104950.0,1.49320758]
[1750332424934,33.11466472,104960.0,104950.0,1.48367987]
[1750332426289,33.3052135,104960.0,104950.0,1.32935987]
[1750332426530,33.3052135,104960.0,104950.0,1.51921167]
[1750332426745,33.3052135,104960.0,104950.0,1.48367987]
[1750332427417,33.11466472,104960.0,104950.0,1.49320758]
[1750332428339,33.10513729,104960.0,104950.0,1.49320758]
[1750332428562,1.10513729,104960.0,104950.0,1.49320758]
[1750332428996,1.11466472,104960.0,104950.0,1.49320758]
[1750332429710,1.3052135,104960.0,104950.0,1.48367987]
[1750332429932,1.29568634,104960.0,104950.0,1.47415207]
[1750332430225,1.29568634,104960.0,104950.0,1.36934516]
[1750332430439,1.30385909,104960.0,104950.0,1.36934516]
[1750332430657,1.66361686,104960.0,104950.0,1.36934516]
[1750332430866,1.30385909,104960.0,104950.0,1.36934516]
[1750332431522,1.30385909,104960.0,104950.0,1.37887314]
[1750332432875,1.30385909,104960.0,104950.0,1.38840103]
[1750332433112,1.28615909,104960.0,104950.0,1.38840103]
[1750332437027,1.09560995,104960.0,104950.0,1.39792883]
[1750332437238,1.10513738,104960.0,104950.0,1.39792838]
[1750332438065,1.29568616,104960.0,104950.0,1.38840067]
[1750332438482,1.10513666,104960.0,104950.0,1.39792838]
[1750332438694,1.114664,104960.0,104950.0,1.39792838]
[1750332441777,0.95405345,104960.0,104950.0,1.39792838]
[1750332442449,0.9635807,104960.0,104950.0,1.39792838]
[1750332448633,0.92547242,104960.0,104950.0,1.39792838]
[1750332448859,0.93499922,104960.0,104950.0,1.39792838]
[1750332449066,0.9445262,104960.0,104950.0,1.39792838]
[1750332449251,0.9445262,104960.0,104950.0,1.43346018]
[1750332449503,0.9445262,104960.0,104950.0,1.39792838]
[1750332449933,0.95405336,104960.0,104950.0,1.39792838]
[1750332450586,0.9445262,104960.0,104950.0,1.39792838]
[1750332450801,0.95405336,104960.0,104950.0,1.39792838]
[1750332451024,0.9445262,104960.0,104950.0,1.39792838]
[1750332451712,0.94452629,104960.0,104950.0,1.39792838]
[1750332451976,0.9445262,104960.0,104950.0,1.39792838]
[1750332453057,0.93499922,104960.0,104950.0,1.39792838]
[1750332453710,0.9445262,104960.0,104950.0,1.39792838]
[1750332453919,0.94452611,104960.0,104950.0,1.39792838]
[1750332454753,0.93499913,104960.0,104950.0,1.39792838]
[1750332455175,0.91799913,104960.0,104950.0,1.41432838]
[1750332455855,0.93579913,104960.0,104950.0,1.41432838]
[1750332456083,0.90847242,104960.0,104950.0,1.50960731]
[1750332456269,0.90847242,104960.0,104950.0,1.52730731]
[1750332457637,0.18895688,104960.0,104950.0,1.52730731]
[1750332457865,0.90847242,104960.0,104950.0,1.52730731]
[1750332461629,0.90847242,104960.0,104950.0,1.56682731]
[1750332462772,0.90847242,104960.0,104950.0,1.56982731]
[1750332466809,0.18895688,104960.0,104950.0,1.56982731]
[1750332467044,0.90847242,104960.0,104950.0,1.56982731]
[1750332467278,0.90847242,104960.0,104950.0,1.55212731]
[1750332478362,0.18895688,104960.0,104950.0,1.55212731]
[1750332478776,0.90847242,104960.0,104950.0,1.55212731]
[1750332483753,0.90847242,104960.0,104950.0,1.53572731]
[1750332487143,0.92647242,104960.0,104950.0,1.38140731]
[1750332487353,0.92647242,104960.0,104950.0,1.53556731]
[1750332508665,0.94387242,104960.0,104950.0,1.34188731]
[1750332508873,0.94387242,104960.0,104950.0,1.53552731]
[1750332508874,0.95339904,104960.0,104950.0,1.53552731]
[1750332509087,0.2338835,104960.0,104950.0,1.53552731]
[1750332509370,0.94387242,104960.0,104950.0,1.53552731]
[1750332509815,0.95339904,104960.0,104950.0,1.53552731]
[1750332510037,0.94387242,104960.0,104950.0,1.53552731]
[1750332511074,0.95339904,104960.0,104950.0,1.53552731]
[1750332513309,0.94387242,104960.0,104950.0,1.53552731]
[1750332513514,0.95339913,104960.0,104950.0,1.53552731]
[1750332514605,0.96292602,104960.0,104950.0,1.53552731]
[1750332515563,0.95339913,104960.0,104950.0,1.53552731]
[1750332515822,0.96292593,104960.0,104950.0,1.53552731]
[1750332517200,1.15347471,104960.0,104950.0,1.3623118]
[1750332517424,0.96292593,104960.0,104950.0,1.52595951]
[1750332519310,0.95339913,104960.0,104950.0,1.52595951]
[1750332521668,0.96292593,104960.0,104950.0,1.52595951]
[1750332522118,0.96292593,104960.0,104950.0,1.33235951]
[1750332522343,0.972453,104960.0,104950.0,1.48647951]
[1750332523602,0.972493,104960.0,104950.0,1.48647951]
[1750332523818,0.95343913,104960.0,104950.0,1.48647951]
[1750332524722,0.95343904,104960.0,104950.0,1.48647951]
[1750332525829,0.94391242,104960.0,104950.0,1.48647951]
[1750332526277,1.34177829,104960.0,104950.0,1.21802489]
[1750332526498,1.37040711,104960.0,104950.0,1.38167278]
[1750332526717,0.99159493,104960.0,104950.0,1.39120049]
[1750332527146,1.001122,104960.0,104950.0,1.39120049]
[1750332527363,0.99159493,104960.0,104950.0,1.39120049]
[1750332527584,1.01064916,104960.0,104950.0,1.39120049]
[1750332527807,0.81671108,104960.0,104950.0,1.39120049]
[1750332528278,0.80718392,104960.0,104950.0,1.23708049]
[1750332528464,0.80718392,104960.0,104950.0,1.39120049]
[1750332528687,0.77073005,104960.0,104950.0,1.39120049]
[1750332528920,0.75162785,104960.0,104950.0,1.48647942]
[1750332529786,0.74210105,104960.0,104950.0,1.48647942]
[1750332530229,0.75162785,104960.0,104950.0,1.48647942]
[1750332530905,0.74210105,104960.0,104950.0,1.48647942]
[1750332531131,0.75162785,104960.0,104950.0,1.48647942]
[1750332531361,0.74210105,104960.0,104950.0,1.48647942]
[1750332531586,1.09162776,104960.0,104950.0,1.48647942]
[1750332533195,1.10115456,104960.0,104950.0,1.48647942]
[1750332533865,1.09162776,104960.0,104950.0,1.48647942]
[1750332534435,1.10902776,104960.0,104950.0,1.48647942]
[1750332535042,1.10902776,104960.0,104950.0,1.008402]
[1750332535043,2.71955429,104960.0,104950.0,1.008402]
[1750332535244,1.68213927,104960.0,104950.0,1.008402]
[1750332535464,1.83625927,104960.0,104950.0,1.008402]
[1750332535665,1.93152912,104960.0,104950.0,1.008402]
[1750332535873,1.96016112,104960.0,104950.0,1.008402]
[1750332536314,1.96016112,104960.0,104950.0,1.006402]
[1750332537146,1.86489127,104960.0,104950.0,1.19596893]
[1750332537356,1.86489127,104960.0,104950.0,1.20549709]
[1750332538209,1.85536429,104960.0,104950.0,1.20549709]
[1750332538410,1.84583704,104960.0,104950.0,1.005402]
[1750332542158,0.76656373,104960.0,104950.0,1.005402]
[1750332542371,0.76656373,104960.0,104950.0,1.20549718]
[1750332542580,1.84583704,104960.0,104950.0,1.20549718]
[1750332542786,1.84583704,104960.0,104950.0,1.21502534]
[1750332542996,1.66481551,104960.0,104950.0,1.23408139]
[1750332543207,1.68386938,104960.0,104950.0,1.24360928]
[1750332543415,1.86489163,104960.0,104950.0,1.005402]
[1750332543624,1.86489163,104960.0,104950.0,1.01493034]
[1750332543842,1.94494674,104960.0,104950.0,1.01493034]
[1750332544265,1.86489163,104960.0,104950.0,1.21502543]
[1750332545319,1.86489163,104960.0,104950.0,1.01493034]
[1750332545574,1.85536447,104960.0,104950.0,1.01493034]
[1750332545996,1.46997409,104960.0,104950.0,1.01493034]
[1750332547546,1.46997409,104960.0,104950.0,1.005402]
[1750332548143,1.56524394,104960.0,104950.0,1.005402]
[1750332549006,1.58324394,104960.0,104950.0,1.005402]
[1750332550567,1.92324394,104960.0,104950.0,1.005402]
[1750332550769,1.82797409,104960.0,104950.0,1.20549727]
[1750332552074,1.82797409,104960.0,104950.0,1.21502552]
[1750332552486,1.83750134,104960.0,104950.0,1.22455368]
[1750332555926,1.86030504,104960.0,104950.0,1.22455368]
[1750332559092,1.86030504,104960.0,104950.0,1.23408175]
[1750332560517,1.83750134,104960.0,104950.0,1.23408175]
[1750332560726,1.86031171,104960.0,104950.0,1.23408175]
[1750332561164,1.86031171,104960.0,104950.0,1.22455368]
[1750332563719,1.86031171,104960.0,104950.0,1.21502552]
[1750332564958,1.85078446,104960.0,104950.0,1.21502552]
[1750332567372,1.85082446,104960.0,104950.0,1.21502552]
[1750332569768,1.69666446,104960.0,104950.0,1.21502552]
[1750332569977,1.85082446,104960.0,104950.0,1.21502552]
[1750332570497,1.85082446,104960.0,104950.0,1.20549727]
[1750332570697,1.85082446,104960.0,104950.0,1.01493034]
[1750332571576,1.69666446,104960.0,104950.0,1.01493034]
[1750332571786,1.85082446,104960.0,104950.0,1.005402]
[1750332572661,1.83342446,104960.0,104950.0,1.005402]
[1750332573286,1.83342446,104960.0,104950.0,1.01493034]
[1750332573502,1.83342446,104960.0,104950.0,1.01245034]
[1750332573704,1.83382446,104960.0,104950.0,1.01245034]
[1750332574956,1.83382446,104960.0,104950.0,1.002922]
[1750332582559,1.83382446,104960.0,104950.0,1.01245034]
[1750332585838,1.92909431,104960.0,104950.0,1.002922]
[1750332588026,1.92913431,104960.0,104950.0,1.002922]
[1750332589781,1.94793431,104960.0,104950.0,1.002922]
[1750332592004,1.97815285,104960.0,104950.0,1.002922]
[1750332592267,2.36642358,104960.0,104950.0,1.002922]
[1750332592492,2.00666581,104960.0,104950.0,1.002922]
[1750332592715,2.10194474,104960.0,104950.0,1.002922]
[1750332594731,2.0717262,104960.0,104950.0,1.002922]
[1750332595398,2.43148397,104960.0,104950.0,1.002922]
[1750332596055,2.0717262,104960.0,104950.0,1.002922]
[1750332597879,0.95721063,104950.0,104940.0,0.0001]
[1750332598097,1.69742048,104950.0,104940.0,0.0001]
[1750332598530,1.72605448,104950.0,104940.0,0.0001]
[1750332599197,1.72605448,104950.0,104940.0,0.0021]
[1750332600128,1.71181989,104950.0,104940.0,0.0021]
[1750332600368,1.72134805,104950.0,104940.0,0.0031]
[1750332600850,2.08110582,104950.0,104940.0,0.0031]
[1750332601095,2.1039138,104950.0,104940.0,0.0031]
[1750332601306,2.16321102,104950.0,104940.0,0.0031]
[1750332601548,2.04869273,104950.0,104940.0,0.0031]
[1750332602231,0.20011416,104940.0,104930.0,0.0001]
[1750332602424,1.56539732,104940.0,104930.0,0.0001]
[1750332602889,1.59403432,104940.0,104930.0,0.0001]
[1750332603134,2.02931325,104940.0,104930.0,0.0001]
[1750332603351,3.16159551,104940.0,104930.0,0.0001]
[1750332603798,3.17487702,104940.0,104930.0,0.0001]
[1750332604251,3.17487702,104940.0,104930.0,0.0011]
[1750332604466,3.17487702,104940.0,104930.0,0.0001]
[1750332605125,3.20385854,104940.0,104930.0,0.0001]
[1750332605587,3.20385854,104940.0,104930.0,0.0011]
[1750332606029,3.20385854,104940.0,104930.0,0.0001]
[1750332606250,3.20785854,104940.0,104930.0,0.0001]
[1750332608093,1.65640654,104930.0,104920.0,0.0001]
[1750332608317,1.87062459,104930.0,104920.0,0.0001]
[1750332608762,1.96590352,104930.0,104920.0,0.0001]
[1750332609430,1.96790352,104930.0,104920.0,0.0001]
[1750332612106,1.99654552,104930.0,104920.0,0.0001]
[1750332618955,1.97714552,104930.0,104920.0,0.0001]
[1750332619871,1.95954552,104930.0,104920.0,0.0001]
[1750332620099,1.59974775,104930.0,104920.0,0.0001]
[1750332620736,1.95950552,104930.0,104920.0,0.0001]
[1750332623615,1.9822548,104930.0,104920.0,0.0001]
[1750332624112,1.9822548,104930.0,104920.0,0.01792291]
[1750332625438,2.0030548,104930.0,104920.0,0.01792291]
[1750332625654,2.0214548,104930.0,104920.0,0.01792291]
[1750332626300,2.0214548,104930.0,104920.0,0.01792889]
[1750332628001,2.0030548,104930.0,104920.0,0.01792889]
[1750332628425,1.9822548,104930.0,104920.0,0.01792889]
[1750332629077,1.9822548,104930.0,104920.0,0.0001]
[1750332635137,1.3727781,104930.0,104920.0,0.0436]
[1750332635363,1.5270581,104930.0,104920.0,0.0436]
[1750332636302,0.65326256,104930.0,104920.0,0.0436]
[1750332636545,1.5270581,104930.0,104920.0,0.0436]
[1750332641384,1.5270581,104930.0,104920.0,0.04228]
[1750332641856,1.52714132,104930.0,104920.0,0.04228]
[1750332643435,0.55921317,104920.0,104910.0,0.23190233]
[1750332643674,2.12898648,104920.0,104910.0,0.23190233]
[1750332643917,2.11945623,104920.0,104910.0,0.23190233]
[1750332644135,2.10992571,104920.0,104910.0,0.22237072]
[1750332644344,2.10992571,104920.0,104910.0,0.25300251]
[1750332645005,2.20519556,104920.0,104910.0,0.05283197]
[1750332645240,2.22802718,104920.0,104910.0,0.05283197]
[1750332645457,2.23383656,104920.0,104910.0,0.05283197]
[1750332646152,2.22430558,104920.0,104910.0,0.0433]
[1750332646385,2.24713736,104920.0,104910.0,0.0433]
[1750332646672,0.00953179,104910.0,104900.0,0.2716441]
[1750332646887,0.72904733,104910.0,104900.0,0.2716441]
[1750332647386,0.74811091,104910.0,104900.0,0.26211194]
[1750332648027,0.74811091,104910.0,104900.0,0.26311194]
[1750332648681,0.75764252,104910.0,104900.0,0.26311194]
[1750332649145,0.94828211,104910.0,104900.0,0.25358023]
[1750332649365,0.94828211,104910.0,104900.0,0.26311275]
[1750332650683,0.9387505,104910.0,104900.0,0.25358023]
[1750332651327,0.9387505,104910.0,104900.0,0.26311275]
[1750332651590,0.9387505,104910.0,104900.0,0.27264518]
[1750332653450,0.9387505,104910.0,104900.0,0.28217752]
[1750332653617,0.74811091,104910.0,104900.0,0.28217689]
[1750332656982,0.73857903,104910.0,104900.0,0.28217689]
[1750332657616,0.73857867,104910.0,104900.0,0.28217689]
[1750332657819,0.74811046,104910.0,104900.0,0.28217689]
[1750332658924,0.73857813,104910.0,104900.0,0.28217689]
[1750332659173,0.37882027,104910.0,104900.0,0.28217689]
[1750332659381,0.36928902,104910.0,104900.0,0.28217689]
[1750332659844,1.60196373,104920.0,104910.0,0.26213469]
[1750332660065,1.63008733,104920.0,104910.0,0.27166603]
[1750332660290,1.60144633,104920.0,104910.0,0.27166603]
[1750332662315,1.60144624,104920.0,104910.0,0.27166603]
[1750332662526,1.59191545,104920.0,104910.0,0.27166603]
[1750332662742,1.60144624,104920.0,104910.0,0.27166603]
[1750332662962,1.59191545,104920.0,104910.0,0.27166603]
[1750332663737,1.60144633,104920.0,104910.0,0.27166603]
[1750332664128,1.60144633,104920.0,104910.0,0.42610603]
[1750332664581,1.63008533,104920.0,104910.0,0.42610603]
[1750332664785,1.62055445,104920.0,104910.0,0.42610603]
[1750332664995,1.63008524,104920.0,104910.0,0.42610603]
[1750332665434,0.92010058,104920.0,104910.0,0.42610603]
[1750332665653,1.63961612,104920.0,104910.0,0.42610603]
[1750332666078,1.63008524,104920.0,104910.0,0.42610603]
[1750332667384,1.63961612,104920.0,104910.0,0.42610603]
[1750332671476,1.6491471,104920.0,104910.0,0.42610603]
[1750332672499,1.63961612,104920.0,104910.0,0.42610603]
[1750332674474,2.18999531,104920.0,104910.0,0.37367469]
[1750332674736,2.22600293,104920.0,104910.0,0.00953197]
[1750332674958,2.42478293,104920.0,104910.0,0.20970344]
[1750332675601,2.41525214,104920.0,104910.0,0.20970344]
[1750332675836,2.40572126,104920.0,104900.0,0.21098005]
[1750332676083,0.73857867,104910.0,104900.0,0.38432464]
[1750332676532,0.73857939,104910.0,104900.0,0.37479239]
[1750332677445,0.92921898,104910.0,104900.0,0.36526005]
[1750332677667,0.92921898,104910.0,104900.0,0.37479248]
[1750332677885,0.92921898,104910.0,104900.0,0.38432482]
[1750332678103,0.74811082,104910.0,104900.0,0.39385707]
[1750332678952,0.75764279,104910.0,104900.0,0.39385707]
[1750332679364,0.75764279,104910.0,104900.0,0.39485707]
[1750332679577,0.75764279,104910.0,104900.0,0.38532482]
[1750332680875,0.74811082,104910.0,104900.0,0.39485707]
[1750332681147,0.74811082,104910.0,104900.0,0.24057707]
[1750332681368,0.77864279,104910.0,104900.0,0.39485707]
[1750332683132,0.77864279,104910.0,104900.0,0.38532482]
[1750332683973,0.96928238,104910.0,104900.0,0.38532482]
[1750332684182,0.76730234,104910.0,104900.0,0.38532482]
[1750332684611,0.77683431,104910.0,104900.0,0.38532482]
[1750332685442,0.77683431,104910.0,104900.0,0.23104482]
[1750332685657,0.77683431,104910.0,104900.0,0.34731151]
[1750332685869,0.79933431,104910.0,104900.0,0.3568443]
[1750332686070,1.13933431,104910.0,104900.0,0.01190663]
[1750332686273,1.13933431,104910.0,104900.0,0.00237375]
[1750332686700,1.16797631,104910.0,104900.0,0.00237375]
[1750332688269,1.3108291,104910.0,104900.0,0.00237375]
[1750332688554,1.40609895,104910.0,104900.0,0.00237375]
[1750332695800,0.68658341,104910.0,104900.0,0.00237375]
[1750332696012,1.40609895,104910.0,104900.0,0.00237375]
[1750332696908,1.40609895,104910.0,104900.0,0.01130484]
[1750332697546,1.40609895,104910.0,104900.0,0.00237375]
[1750332699483,1.42893039,104910.0,104900.0,0.00237375]
[1750332699711,1.45023039,104910.0,104900.0,0.00237375]
[1750332699932,1.96426816,104910.0,104900.0,0.00237375]
[1750332700146,1.60451039,104910.0,104900.0,0.00237375]
[1750332700861,1.58321039,104910.0,104900.0,0.00237375]
[1750332701910,1.58320754,104910.0,104900.0,0.00237375]
[1750332702135,1.56037895,104910.0,104900.0,0.00237375]
[1750332702353,1.58320816,104910.0,104900.0,0.00237375]
[1750332702997,1.60380816,104910.0,104900.0,0.00237375]
[1750332704676,1.58320816,104910.0,104900.0,0.00237375]
[1750332705312,1.37074664,104910.0,104900.0,0.00237375]
[1750332705533,1.56138623,104910.0,104900.0,0.00237375]
[1750332705954,1.46611638,104910.0,104900.0,0.00237375]
[1750332707349,1.46611638,104910.0,104900.0,0.00073375]
[1750332707559,1.45590634,104910.0,104900.0,0.00073375]
[1750332708470,1.81566411,104910.0,104900.0,0.00073375]
[1750332710920,1.45590634,104910.0,104900.0,0.00073375]
[1750332711160,1.55117619,104910.0,104900.0,0.00073375]
[1750332716168,1.48450135,104910.0,104900.0,0.25295691]
[1750332716382,1.29386176,104910.0,104900.0,0.27202168]
[1750332717085,1.30339373,104910.0,104900.0,0.27202168]
[1750332717308,1.48450189,104910.0,104900.0,0.26248934]
[1750332718225,1.33022189,104910.0,104900.0,0.26248934]
[1750332720539,1.32069019,104910.0,104900.0,0.25295691]
[1750332723358,1.32069019,104910.0,104900.0,0.2434243]
[1750332723819,1.32069019,104910.0,104900.0,0.25295691]
[1750332724287,1.31115831,104910.0,104900.0,0.2434243]